[Event "Titled Tuesday Blitz November 08 Late 2022"]
[White "Faizrakhmanov, Ramil"]
[Black "Moskvin, Anatoly"]
[WhiteFideId "24103209"]
[BlackFideId "24199990"]
[WhiteElo "2437"]
[BlackElo "2079"]
[Result "1-0"]
[Round "06"]
[TimeControl "180+1"]
[Date "2022.11.09"]
[WhiteClock "0:00:53"]
[BlackClock "0:00:17"]

1. d4 {[%clk 0:02:59]}  Nf6 {[%clk 0:02:59]} 2. c4 {[%clk 0:02:59]}  c5 {[%clk 0:02:59]} 3. d5 {[%clk 0:02:59]}  b5 {[%clk 0:02:59]} 4. cxb5 {[%clk 0:03:00]}  a6 {[%clk 0:03:00]} 5. bxa6 {[%clk 0:03:01]}  Bxa6 {[%clk 0:03:01]} 6. Nc3 {[%clk 0:03:01]}  g6 {[%clk 0:03:01]} 7. e4 {[%clk 0:03:02]}  Bxf1 {[%clk 0:03:02]} 8. Kxf1 {[%clk 0:03:02]}  d6 {[%clk 0:03:03]} 9. g3 {[%clk 0:03:02]}  Bg7 {[%clk 0:03:04]} 10. Kg2 {[%clk 0:03:03]}  O-O {[%clk 0:03:05]} 11. Nf3 {[%clk 0:03:03]}  Nbd7 {[%clk 0:03:05]} 12. a4 {[%clk 0:03:03]}  Qb6 {[%clk 0:03:06]} 13. Qc2 {[%clk 0:03:00]}  Qb7 {[%clk 0:02:53]} 14. Rd1 {[%clk 0:02:57]}  Ng4 {[%clk 0:02:47]} 15. h3 {[%clk 0:02:56]}  Nge5 {[%clk 0:02:48]} 16. Nd2 {[%clk 0:02:56]}  f5 {[%clk 0:02:46]} 17. f4 {[%clk 0:02:51]}  Nf7 {[%clk 0:02:33]} 18. exf5 {[%clk 0:02:37]}  gxf5 {[%clk 0:02:34]} 19. Qxf5 {[%clk 0:02:31]}  Kh8 {[%clk 0:02:28]} 20. Nf3 {[%clk 0:02:16]}  Nfe5 {[%clk 0:02:18]} 21. Qe4 {[%clk 0:02:16]}  Nxf3 {[%clk 0:02:03]} 22. Qxf3 {[%clk 0:02:17]}  Qb3 {[%clk 0:02:02]} 23. Ra3 {[%clk 0:02:13]}  Qc2+ {[%clk 0:01:54]} 24. Qe2 {[%clk 0:02:11]}  Qxe2+ {[%clk 0:01:53]} 25. Nxe2 {[%clk 0:02:12]}  Nb6 {[%clk 0:01:54]} 26. b3 {[%clk 0:02:07]}  Rf5 {[%clk 0:01:55]} 27. a5 {[%clk 0:01:57]}  Nc8 {[%clk 0:01:19]} 28. g4 {[%clk 0:01:57]}  Rf8 {[%clk 0:01:18]} 29. f5 {[%clk 0:01:50]}  Na7 {[%clk 0:01:19]} 30. Bg5 {[%clk 0:01:46]}  Nb5 {[%clk 0:01:19]} 31. Ra4 {[%clk 0:01:45]}  Ra7 {[%clk 0:01:10]} 32. Rd3 {[%clk 0:01:42]}  h5 {[%clk 0:01:00]} 33. Nf4 {[%clk 0:01:40]}  hxg4 {[%clk 0:00:53]} 34. Ng6+ {[%clk 0:01:40]}  Kg8 {[%clk 0:00:54]} 35. Nxf8 {[%clk 0:01:38]}  gxh3+ {[%clk 0:00:53]} 36. Kxh3 {[%clk 0:01:38]}  Kxf8 {[%clk 0:00:54]} 37. Kg4 {[%clk 0:01:29]}  Nc3 {[%clk 0:00:47]} 38. f6 {[%clk 0:01:21]}  exf6 {[%clk 0:00:20]} 39. Rxc3 {[%clk 0:01:02]}  f5+ {[%clk 0:00:20]} 40. Kxf5 {[%clk 0:01:02]}  Bxc3 {[%clk 0:00:21]} 41. Ke6 {[%clk 0:01:02]}  Be5 {[%clk 0:00:20]} 42. a6 {[%clk 0:00:59]}  Ke8 {[%clk 0:00:20]} 43. b4 {[%clk 0:00:52]}  cxb4 {[%clk 0:00:17]} 44. Rxb4 {[%clk 0:00:53]}  Kf8 {[%clk 0:00:17]} 45. Rb8+ {[%clk 0:00:52]}  Kg7 {[%clk 0:00:17]} 46. Rb7+ {[%clk 0:00:53]} 1-0


[Site "https://www.chess.com"]

[Event "Titled Tuesday Blitz November 08 Late 2022"]
[White "Fernandez De La Vara, Arnaldo"]
[Black "Shankland, Sam"]
[WhiteFideId "3518388"]
[BlackFideId "2004887"]
[WhiteElo "2387"]
[BlackElo "2612"]
[Result "1/2-1/2"]
[Round "06"]
[TimeControl "180+1"]
[Date "2022.11.08"]
[WhiteClock "0:00:07"]
[BlackClock "0:00:39"]

1. Nf3 {[%clk 0:01:55]}  d5 {[%clk 0:02:59]} 2. c4 {[%clk 0:01:55]}  c6 {[%clk 0:02:59]} 3. g3 {[%clk 0:01:55]}  Nf6 {[%clk 0:02:59]} 4. b3 {[%clk 0:01:56]}  dxc4 {[%clk 0:02:54]} 5. bxc4 {[%clk 0:01:57]}  e5 {[%clk 0:02:55]} 6. Nc3 {[%clk 0:01:52]}  Bc5 {[%clk 0:02:47]} 7. Bg2 {[%clk 0:01:45]}  Qe7 {[%clk 0:02:37]} 8. O-O {[%clk 0:01:37]}  O-O {[%clk 0:02:37]} 9. d3 {[%clk 0:01:36]}  h6 {[%clk 0:02:32]} 10. Nd2 {[%clk 0:01:35]}  Nbd7 {[%clk 0:02:25]} 11. a4 {[%clk 0:01:35]}  Bb4 {[%clk 0:02:18]} 12. Qb3 {[%clk 0:01:29]}  a5 {[%clk 0:02:17]} 13. Ba3 {[%clk 0:01:25]}  Re8 {[%clk 0:02:14]} 14. Rfb1 {[%clk 0:01:24]}  Bxa3 {[%clk 0:02:09]} 15. Rxa3 {[%clk 0:01:20]}  Nc5 {[%clk 0:02:08]} 16. Qb2 {[%clk 0:01:20]}  Bf5 {[%clk 0:02:08]} 17. Ra2 {[%clk 0:01:11]}  Rad8 {[%clk 0:02:06]} 18. Qb6 {[%clk 0:01:10]}  e4 {[%clk 0:02:03]} 19. Ndxe4 {[%clk 0:01:04]}  Nfxe4 {[%clk 0:02:03]} 20. dxe4 {[%clk 0:01:04]}  Nxe4 {[%clk 0:02:03]} 21. Bxe4 {[%clk 0:00:49]}  Bxe4 {[%clk 0:02:03]} 22. Nxe4 {[%clk 0:00:46]}  Qxe4 {[%clk 0:02:02]} 23. Rc1 {[%clk 0:00:46]}  Rd7 {[%clk 0:02:00]} 24. Qxa5 {[%clk 0:00:45]}  h5 {[%clk 0:02:00]} 25. Qxh5 {[%clk 0:00:43]}  Re5 {[%clk 0:01:52]} 26. Qf3 {[%clk 0:00:42]}  Qxf3 {[%clk 0:01:52]} 27. exf3 {[%clk 0:00:43]}  Rc5 {[%clk 0:01:52]} 28. Rb2 {[%clk 0:00:35]}  g6 {[%clk 0:01:50]} 29. Rb4 {[%clk 0:00:33]}  Kg7 {[%clk 0:01:45]} 30. Kf1 {[%clk 0:00:28]}  Rd3 {[%clk 0:01:43]} 31. Ke2 {[%clk 0:00:26]}  Ra3 {[%clk 0:01:43]} 32. f4 {[%clk 0:00:26]}  g5 {[%clk 0:01:34]} 33. Rxb7 {[%clk 0:00:22]}  gxf4 {[%clk 0:01:33]} 34. gxf4 {[%clk 0:00:23]}  Rxa4 {[%clk 0:01:29]} 35. Kd3 {[%clk 0:00:22]}  Rh5 {[%clk 0:01:27]} 36. Re1 {[%clk 0:00:20]}  Ra3+ {[%clk 0:01:23]} 37. Kd4 {[%clk 0:00:20]}  c5+ {[%clk 0:01:23]} 38. Ke4 {[%clk 0:00:20]}  Rc3 {[%clk 0:01:23]} 39. Re3 {[%clk 0:00:10]}  Rxc4+ {[%clk 0:01:22]} 40. Kf3 {[%clk 0:00:10]}  Rh4 {[%clk 0:01:19]} 41. Re4 {[%clk 0:00:05]}  Rh3+ {[%clk 0:00:50]} 42. Kg4 {[%clk 0:00:04]}  Rxe4 {[%clk 0:00:51]} 43. Kxh3 {[%clk 0:00:05]}  Rxf4 {[%clk 0:00:51]} 44. Rc7 {[%clk 0:00:06]}  c4 {[%clk 0:00:50]} 45. Kg3 {[%clk 0:00:06]}  Rd4 {[%clk 0:00:51]} 46. Kf3 {[%clk 0:00:07]}  Kf6 {[%clk 0:00:51]} 47. Ke3 {[%clk 0:00:07]}  Rh4 {[%clk 0:00:51]} 48. f4 {[%clk 0:00:05]}  Rxh2 {[%clk 0:00:50]} 49. Rxc4 {[%clk 0:00:05]}  Kf5 {[%clk 0:00:51]} 50. Rc5+ {[%clk 0:00:05]}  Kg4 {[%clk 0:00:50]} 51. Rg5+ {[%clk 0:00:05]}  Kh4 {[%clk 0:00:50]} 52. Rf5 {[%clk 0:00:06]}  Kg4 {[%clk 0:00:43]} 53. Rxf7 {[%clk 0:00:06]}  Rh8 {[%clk 0:00:44]} 54. Ke4 {[%clk 0:00:02]}  Re8+ {[%clk 0:00:43]} 55. Kd5 {[%clk 0:00:03]}  Re1 {[%clk 0:00:41]} 56. f5 {[%clk 0:00:03]}  Kg5 {[%clk 0:00:41]} 57. Kd6 {[%clk 0:00:04]}  Re2 {[%clk 0:00:39]} 58. Rf8 {[%clk 0:00:03]}  Re1 {[%clk 0:00:38]} 59. Kd7 {[%clk 0:00:03]}  Re2 {[%clk 0:00:38]} 60. f6 {[%clk 0:00:03]}  Kg6 {[%clk 0:00:38]} 61. f7 {[%clk 0:00:03]}  Kg7 {[%clk 0:00:37]} 62. Re8 {[%clk 0:00:04]}  Rd2+ {[%clk 0:00:38]} 63. Ke7 {[%clk 0:00:04]}  Re2+ {[%clk 0:00:38]} 64. Kd6 {[%clk 0:00:05]}  Rd2+ {[%clk 0:00:38]} 65. Ke6 {[%clk 0:00:05]}  Re2+ {[%clk 0:00:38]} 66. Kf5 {[%clk 0:00:05]}  Rf2+ {[%clk 0:00:38]} 67. Kg5 {[%clk 0:00:06]}  Rxf7 {[%clk 0:00:39]} 68. Re6 {[%clk 0:00:06]}  Rd7 {[%clk 0:00:38]} 69. Rg6+ {[%clk 0:00:07]}  Kf7 {[%clk 0:00:39]} 70. Rf6+ {[%clk 0:00:08]}  Ke7 {[%clk 0:00:39]} 71. Rf5 {[%clk 0:00:08]}  Ke6 {[%clk 0:00:38]} 72. Ra5 {[%clk 0:00:07]}  Rd5+ {[%clk 0:00:38]} 73. Rxd5 {[%clk 0:00:07]}  Kxd5 {[%clk 0:00:39]} 1/2-1/2


[Site "https://www.chess.com"]

[Event "Titled Tuesday Blitz November 08 Late 2022"]
[White "Fiol, Fabrice"]
[Black "Clawitter, Craig"]
[WhiteFideId "611670"]
[BlackFideId "2023105"]
[WhiteElo "2451"]
[BlackElo "2166"]
[Result "1-0"]
[Round "06"]
[TimeControl "180+1"]
[Date "2022.11.09"]
[WhiteClock "0:00:13"]
[BlackClock "0:00:06"]

1. e4 {[%clk 0:03:00]}  e6 {[%clk 0:02:59]} 2. Qe2 {[%clk 0:03:00]}  c5 {[%clk 0:02:58]} 3. Nf3 {[%clk 0:03:00]}  Nc6 {[%clk 0:02:56]} 4. d3 {[%clk 0:03:00]}  g6 {[%clk 0:02:57]} 5. g3 {[%clk 0:03:00]}  Bg7 {[%clk 0:02:57]} 6. Bg2 {[%clk 0:03:00]}  Nge7 {[%clk 0:02:57]} 7. c3 {[%clk 0:03:00]}  O-O {[%clk 0:02:57]} 8. Nbd2 {[%clk 0:03:00]}  d5 {[%clk 0:02:54]} 9. h4 {[%clk 0:03:00]}  h6 {[%clk 0:02:48]} 10. Nf1 {[%clk 0:02:58]}  b5 {[%clk 0:02:35]} 11. e5 {[%clk 0:02:52]}  b4 {[%clk 0:02:33]} 12. N1h2 {[%clk 0:02:51]}  a5 {[%clk 0:01:49]} 13. O-O {[%clk 0:02:38]}  a4 {[%clk 0:01:48]} 14. a3 {[%clk 0:02:38]}  bxc3 {[%clk 0:01:47]} 15. bxc3 {[%clk 0:02:38]}  Ba6 {[%clk 0:01:47]} 16. Ng4 {[%clk 0:02:31]}  Nf5 {[%clk 0:01:43]} 17. Bf4 {[%clk 0:02:14]}  Rb8 {[%clk 0:01:28]} 18. Rad1 {[%clk 0:02:12]}  d4 {[%clk 0:01:25]} 19. c4 {[%clk 0:02:12]}  Rb3 {[%clk 0:01:15]} 20. Qd2 {[%clk 0:02:08]}  h5 {[%clk 0:00:58]} 21. Nf6+ {[%clk 0:01:59]}  Bxf6 {[%clk 0:00:43]} 22. exf6 {[%clk 0:01:59]}  Qxf6 {[%clk 0:00:43]} 23. Bg5 {[%clk 0:01:43]}  Qg7 {[%clk 0:00:40]} 24. Nh2 {[%clk 0:01:36]}  Ne5 {[%clk 0:00:34]} 25. Qa5 {[%clk 0:01:36]}  Bb7 {[%clk 0:00:11]} 26. Bxb7 {[%clk 0:01:28]}  Rxb7 {[%clk 0:00:11]} 27. Qxc5 {[%clk 0:01:19]}  Rb3 {[%clk 0:00:11]} 28. Qa5 {[%clk 0:00:31]}  Nxd3 {[%clk 0:00:11]} 29. Qxa4 {[%clk 0:00:24]}  Rfb8 {[%clk 0:00:10]} 30. c5 {[%clk 0:00:19]}  Nb2 {[%clk 0:00:10]} 31. Qa7 {[%clk 0:00:18]}  Nxd1 {[%clk 0:00:10]} 32. Rxd1 {[%clk 0:00:19]}  d3 {[%clk 0:00:08]} 33. Nf3 {[%clk 0:00:18]}  Rb1 {[%clk 0:00:08]} 34. Rxb1 {[%clk 0:00:18]}  Rxb1+ {[%clk 0:00:08]} 35. Kg2 {[%clk 0:00:19]}  Qb2 {[%clk 0:00:06]} 36. Qa8+ {[%clk 0:00:15]}  Kg7 {[%clk 0:00:06]} 37. Bf4 {[%clk 0:00:13]} 1-0


[Site "https://www.chess.com"]

[Event "Titled Tuesday Blitz November 08 Late 2022"]
[White "Gareyev, Timur"]
[Black "Sebag, Marie"]
[WhiteFideId "14200937"]
[BlackFideId "617822"]
[WhiteElo "2552"]
[BlackElo "2440"]
[Result "0-1"]
[Round "06"]
[TimeControl "180+1"]
[Date "2022.11.08"]
[WhiteClock "0:00:02"]
[BlackClock "0:00:08"]

1. e4 {[%clk 0:00:17]}  c5 {[%clk 0:02:56]} 2. b4 {[%clk 0:00:17]}  b6 {[%clk 0:02:55]} 3. bxc5 {[%clk 0:00:16]}  bxc5 {[%clk 0:02:56]} 4. Nf3 {[%clk 0:00:17]}  Bb7 {[%clk 0:02:55]} 5. Nc3 {[%clk 0:00:17]}  g6 {[%clk 0:02:53]} 6. Rb1 {[%clk 0:00:18]}  Bc6 {[%clk 0:02:53]} 7. Bc4 {[%clk 0:00:18]}  Bg7 {[%clk 0:02:51]} 8. O-O {[%clk 0:00:19]}  d6 {[%clk 0:02:44]} 9. Re1 {[%clk 0:00:18]}  Nd7 {[%clk 0:02:40]} 10. d4 {[%clk 0:00:17]}  cxd4 {[%clk 0:02:31]} 11. Nxd4 {[%clk 0:00:18]}  Rc8 {[%clk 0:02:30]} 12. Ba6 {[%clk 0:00:18]}  Rc7 {[%clk 0:02:23]} 13. Ncb5 {[%clk 0:00:18]}  Bxb5 {[%clk 0:02:18]} 14. Nxb5 {[%clk 0:00:19]}  Rc6 {[%clk 0:02:13]} 15. Bb7 {[%clk 0:00:19]}  Rb6 {[%clk 0:02:11]} 16. Be3 {[%clk 0:00:19]}  Rxb7 {[%clk 0:02:05]} 17. Nxd6+ {[%clk 0:00:19]}  exd6 {[%clk 0:02:05]} 18. Rxb7 {[%clk 0:00:20]}  Qa5 {[%clk 0:01:12]} 19. Bd2 {[%clk 0:00:16]}  Qa6 {[%clk 0:01:05]} 20. Rxd7 {[%clk 0:00:12]}  Kxd7 {[%clk 0:01:03]} 21. e5 {[%clk 0:00:13]}  Bxe5 {[%clk 0:00:55]} 22. Bb4 {[%clk 0:00:09]}  Qb5 {[%clk 0:00:46]} 23. c3 {[%clk 0:00:09]}  Ne7 {[%clk 0:00:42]} 24. Qf3 {[%clk 0:00:09]}  Qd5 {[%clk 0:00:37]} 25. Qh3+ {[%clk 0:00:09]}  f5 {[%clk 0:00:34]} 26. Qe3 {[%clk 0:00:09]}  Nc6 {[%clk 0:00:29]} 27. Ba3 {[%clk 0:00:07]}  Qxa2 {[%clk 0:00:23]} 28. Bc1 {[%clk 0:00:03]}  Re8 {[%clk 0:00:18]} 29. Qh6 {[%clk 0:00:03]}  Qf7 {[%clk 0:00:17]} 30. Kf1 {[%clk 0:00:04]}  Bxc3 {[%clk 0:00:17]} 31. Rxe8 {[%clk 0:00:03]}  Qxe8 {[%clk 0:00:17]} 32. Be3 {[%clk 0:00:02]}  Qe7 {[%clk 0:00:17]} 33. Qf4 {[%clk 0:00:03]}  Be5 {[%clk 0:00:17]} 34. Qa4 {[%clk 0:00:03]}  Qe6 {[%clk 0:00:17]} 35. Qb5 {[%clk 0:00:03]}  Qa2 {[%clk 0:00:15]} 36. Qb7+ {[%clk 0:00:03]}  Ke6 {[%clk 0:00:16]} 37. Qxc6 {[%clk 0:00:04]}  Qb1+ {[%clk 0:00:16]} 38. Ke2 {[%clk 0:00:04]}  Qb2+ {[%clk 0:00:16]} 39. Kf3 {[%clk 0:00:04]}  Qb8 {[%clk 0:00:14]} 40. g4 {[%clk 0:00:04]}  fxg4+ {[%clk 0:00:14]} 41. Kxg4 {[%clk 0:00:05]}  Qf8 {[%clk 0:00:14]} 42. Qc4+ {[%clk 0:00:04]}  Kd7 {[%clk 0:00:14]} 43. Qb5+ {[%clk 0:00:03]}  Ke6 {[%clk 0:00:13]} 44. Qb3+ {[%clk 0:00:03]}  d5 {[%clk 0:00:13]} 45. f4 {[%clk 0:00:02]}  Qf5+ {[%clk 0:00:12]} 46. Kg3 {[%clk 0:00:03]}  Bd6 {[%clk 0:00:09]} 47. Qb7 {[%clk 0:00:03]}  Qe4 {[%clk 0:00:09]} 48. Qc8+ {[%clk 0:00:04]}  Ke7 {[%clk 0:00:08]} 49. Qb7+ {[%clk 0:00:03]}  Kf8 {[%clk 0:00:08]} 50. Kf2 {[%clk 0:00:02]}  Bxf4 {[%clk 0:00:08]} 0-1


[Site "https://www.chess.com"]

[Event "Titled Tuesday Blitz November 08 Late 2022"]
[White "Gasparyan, David"]
[Black "Harish, Neeraj"]
[WhiteFideId "13311980"]
[BlackFideId "30958130"]
[WhiteElo "2286"]
[BlackElo "1815"]
[Result "1-0"]
[Round "06"]
[TimeControl "180+1"]
[Date "2022.11.09"]
[WhiteClock "0:00:15"]
[BlackClock "0:00:02"]

1. Nf3 {[%clk 0:03:00]}  Nf6 {[%clk 0:02:57]} 2. c4 {[%clk 0:02:59]}  e6 {[%clk 0:02:54]} 3. g3 {[%clk 0:02:54]}  d5 {[%clk 0:02:53]} 4. Bg2 {[%clk 0:02:50]}  Be7 {[%clk 0:02:52]} 5. O-O {[%clk 0:02:48]}  O-O {[%clk 0:02:50]} 6. d4 {[%clk 0:02:42]}  dxc4 {[%clk 0:02:47]} 7. Nbd2 {[%clk 0:02:41]}  c5 {[%clk 0:02:40]} 8. Nxc4 {[%clk 0:02:37]}  Nc6 {[%clk 0:02:38]} 9. dxc5 {[%clk 0:02:12]}  Bxc5 {[%clk 0:02:36]} 10. Bf4 {[%clk 0:02:05]}  Nd5 {[%clk 0:02:18]} 11. Bg5 {[%clk 0:01:58]}  f6 {[%clk 0:02:16]} 12. Bd2 {[%clk 0:01:52]}  e5 {[%clk 0:02:09]} 13. e4 {[%clk 0:01:52]}  Nde7 {[%clk 0:02:06]} 14. Qc2 {[%clk 0:01:49]}  Nd4 {[%clk 0:02:00]} 15. Nxd4 {[%clk 0:01:49]}  Bxd4 {[%clk 0:02:01]} 16. Bb4 {[%clk 0:01:47]}  Be6 {[%clk 0:01:58]} 17. Rac1 {[%clk 0:01:45]}  Rc8 {[%clk 0:01:54]} 18. Qe2 {[%clk 0:01:39]}  Qd7 {[%clk 0:01:45]} 19. Nd6 {[%clk 0:01:34]}  Rxc1 {[%clk 0:01:42]} 20. Rxc1 {[%clk 0:01:35]}  Nc6 {[%clk 0:01:32]} 21. Ba3 {[%clk 0:01:33]}  Rd8 {[%clk 0:01:23]} 22. Qb5 {[%clk 0:01:29]}  Bb6 {[%clk 0:01:17]} 23. Bf1 {[%clk 0:01:20]}  Qc7 {[%clk 0:01:13]} 24. Nf5 {[%clk 0:00:54]}  Nd4 {[%clk 0:00:58]} 25. Nxd4 {[%clk 0:00:40]}  Qxc1 {[%clk 0:00:53]} 26. Nxe6 {[%clk 0:00:40]}  Qd2 {[%clk 0:00:45]} 27. Qe2 {[%clk 0:00:28]}  Qxe2 {[%clk 0:00:43]} 28. Bxe2 {[%clk 0:00:29]}  Rd2 {[%clk 0:00:42]} 29. Kf1 {[%clk 0:00:29]}  Kf7 {[%clk 0:00:40]} 30. Nc5 {[%clk 0:00:25]}  Rc2 {[%clk 0:00:37]} 31. Nxb7 {[%clk 0:00:21]}  Bd4 {[%clk 0:00:32]} 32. Nd6+ {[%clk 0:00:20]}  Ke6 {[%clk 0:00:28]} 33. Nc4 {[%clk 0:00:19]}  Rc1+ {[%clk 0:00:24]} 34. Kg2 {[%clk 0:00:19]}  Rc2 {[%clk 0:00:24]} 35. Kf3 {[%clk 0:00:19]}  g5 {[%clk 0:00:23]} 36. h3 {[%clk 0:00:20]}  h5 {[%clk 0:00:22]} 37. g4 {[%clk 0:00:20]}  hxg4+ {[%clk 0:00:21]} 38. hxg4 {[%clk 0:00:21]}  Rc1 {[%clk 0:00:17]} 39. Ne3 {[%clk 0:00:20]}  Ra1 {[%clk 0:00:12]} 40. Bc4+ {[%clk 0:00:20]}  Kd7 {[%clk 0:00:11]} 41. Nf5 {[%clk 0:00:20]}  Rc1 {[%clk 0:00:11]} 42. Bb5+ {[%clk 0:00:20]}  Ke6 {[%clk 0:00:10]} 43. Nxd4+ {[%clk 0:00:17]}  exd4 {[%clk 0:00:10]} 44. Bd3 {[%clk 0:00:17]}  Ke5 {[%clk 0:00:06]} 45. b3 {[%clk 0:00:16]}  Ra1 {[%clk 0:00:06]} 46. Be7 {[%clk 0:00:14]}  Rxa2 {[%clk 0:00:06]} 47. Bd8 {[%clk 0:00:14]}  Rb2 {[%clk 0:00:05]} 48. Bc4 {[%clk 0:00:14]}  d3 {[%clk 0:00:05]} 49. Bc7+ {[%clk 0:00:14]}  Kd4 {[%clk 0:00:04]} 50. Ba5 {[%clk 0:00:15]}  d2 {[%clk 0:00:02]} 51. Ke2 {[%clk 0:00:15]} 1-0


[Site "https://www.chess.com"]

[Event "Titled Tuesday Blitz November 08 Late 2022"]
[White "Guimaraes, Marcelo Cunha"]
[Black "Young, Ryan"]
[WhiteFideId "2118068"]
[BlackFideId "2049945"]
[WhiteElo "2108"]
[BlackElo "2281"]
[Result "0-1"]
[Round "06"]
[TimeControl "180+1"]
[Date "2022.11.09"]
[WhiteClock "0:02:35"]
[BlackClock "0:02:45"]

1. e4 {[%clk 0:03:00]}  e5 {[%clk 0:03:00]} 2. Nf3 {[%clk 0:02:59]}  Nc6 {[%clk 0:03:00]} 3. Bb5 {[%clk 0:02:58]}  a6 {[%clk 0:03:01]} 4. Ba4 {[%clk 0:02:58]}  b5 {[%clk 0:03:00]} 5. Bb3 {[%clk 0:02:58]}  Na5 {[%clk 0:03:01]} 6. Nxe5 {[%clk 0:02:52]}  Nxb3 {[%clk 0:03:00]} 7. axb3 {[%clk 0:02:49]}  Qg5 {[%clk 0:03:00]} 8. Nf3 {[%clk 0:02:39]}  Qxg2 {[%clk 0:02:57]} 9. Rg1 {[%clk 0:02:39]}  Qh3 {[%clk 0:02:56]} 10. Nc3 {[%clk 0:02:38]}  Bb7 {[%clk 0:02:52]} 11. Nxb5 {[%clk 0:02:35]}  axb5 {[%clk 0:02:45]} 0-1


[Site "https://www.chess.com"]

[Event "Titled Tuesday Blitz November 08 Late 2022"]
[White "Guzman, Christopher"]
[Black "Haszon, David"]
[WhiteFideId "6405096"]
[BlackFideId "733610"]
[WhiteElo "2272"]
[BlackElo "2211"]
[Result "0-1"]
[Round "06"]
[TimeControl "180+1"]
[Date "2022.11.09"]
[WhiteClock "0:02:49"]
[BlackClock "0:02:38"]

1. e4 {[%clk 0:02:59]}  c6 {[%clk 0:03:00]} 2. d4 {[%clk 0:02:59]}  d5 {[%clk 0:03:00]} 3. exd5 {[%clk 0:03:00]}  cxd5 {[%clk 0:03:01]} 4. Bd3 {[%clk 0:03:00]}  Nc6 {[%clk 0:03:00]} 5. c3 {[%clk 0:03:00]}  Qc7 {[%clk 0:03:00]} 6. Ne2 {[%clk 0:03:00]}  Bg4 {[%clk 0:02:58]} 7. h3 {[%clk 0:03:00]}  Bh5 {[%clk 0:02:57]} 8. O-O {[%clk 0:02:58]}  e6 {[%clk 0:02:57]} 9. Qb3 {[%clk 0:02:55]}  Bd6 {[%clk 0:02:52]} 10. Re1 {[%clk 0:02:54]}  Nge7 {[%clk 0:02:51]} 11. Be3 {[%clk 0:02:54]}  O-O {[%clk 0:02:49]} 12. Nd2 {[%clk 0:02:54]}  a6 {[%clk 0:02:48]} 13. Nf1 {[%clk 0:02:54]}  Rac8 {[%clk 0:02:47]} 14. Rac1 {[%clk 0:02:54]}  b5 {[%clk 0:02:47]} 15. a3 {[%clk 0:02:54]}  Na5 {[%clk 0:02:46]} 16. Qc2 {[%clk 0:02:54]}  Bg6 {[%clk 0:02:45]} 17. Nfg3 {[%clk 0:02:54]}  Nc4 {[%clk 0:02:43]} 18. Bxg6 {[%clk 0:02:53]}  hxg6 {[%clk 0:02:39]} 19. Qb3 {[%clk 0:02:49]}  Nxe3 {[%clk 0:02:38]} 20. fxe3 {[%clk 0:02:49]}  Bxg3 {[%clk 0:02:38]} 0-1


[Site "https://www.chess.com"]

[Event "Titled Tuesday Blitz November 08 Late 2022"]
[White "Hajiyev, Kanan"]
[Black "Brodowski, Piotr"]
[WhiteFideId "13404148"]
[BlackFideId "1124480"]
[WhiteElo "2118"]
[BlackElo "2351"]
[Result "0-1"]
[Round "06"]
[TimeControl "180+1"]
[Date "2022.11.09"]
[WhiteClock "0:00:12"]
[BlackClock "0:00:42"]

1. d4 {[%clk 0:03:00]}  g6 {[%clk 0:02:57]} 2. Nf3 {[%clk 0:02:56]}  Bg7 {[%clk 0:02:57]} 3. c4 {[%clk 0:02:56]}  d6 {[%clk 0:02:56]} 4. Nc3 {[%clk 0:02:56]}  Nc6 {[%clk 0:02:53]} 5. g3 {[%clk 0:02:54]}  Bg4 {[%clk 0:02:49]} 6. Bg2 {[%clk 0:02:52]}  Nf6 {[%clk 0:02:49]} 7. O-O {[%clk 0:02:51]}  O-O {[%clk 0:02:46]} 8. d5 {[%clk 0:02:51]}  Bxf3 {[%clk 0:02:45]} 9. exf3 {[%clk 0:02:52]}  Ne5 {[%clk 0:02:44]} 10. Qe2 {[%clk 0:02:52]}  a5 {[%clk 0:02:38]} 11. Re1 {[%clk 0:02:43]}  Re8 {[%clk 0:02:38]} 12. b3 {[%clk 0:02:41]}  e6 {[%clk 0:02:29]} 13. f4 {[%clk 0:02:23]}  Ned7 {[%clk 0:02:27]} 14. dxe6 {[%clk 0:02:19]}  Rxe6 {[%clk 0:02:26]} 15. Be3 {[%clk 0:02:16]}  Ng4 {[%clk 0:02:20]} 16. Rac1 {[%clk 0:01:52]}  Nxe3 {[%clk 0:02:12]} 17. fxe3 {[%clk 0:01:53]}  Nc5 {[%clk 0:02:10]} 18. Qd2 {[%clk 0:01:37]}  c6 {[%clk 0:01:52]} 19. Rcd1 {[%clk 0:01:32]}  Qb6 {[%clk 0:01:44]} 20. Kh1 {[%clk 0:01:24]}  Rae8 {[%clk 0:01:40]} 21. h4 {[%clk 0:00:53]}  Qb4 {[%clk 0:01:38]} 22. Rc1 {[%clk 0:00:40]}  a4 {[%clk 0:01:37]} 23. Nb1 {[%clk 0:00:32]}  Qxd2 {[%clk 0:01:34]} 24. Nxd2 {[%clk 0:00:33]}  Rxe3 {[%clk 0:01:34]} 25. Rxe3 {[%clk 0:00:27]}  Rxe3 {[%clk 0:01:33]} 26. bxa4 {[%clk 0:00:23]}  Rxg3 {[%clk 0:01:30]} 27. a5 {[%clk 0:00:19]}  Ra3 {[%clk 0:01:20]} 28. Nb3 {[%clk 0:00:16]}  Nxb3 {[%clk 0:01:07]} 29. axb3 {[%clk 0:00:16]}  Rxb3 {[%clk 0:01:07]} 30. a6 {[%clk 0:00:17]}  bxa6 {[%clk 0:01:06]} 31. Bxc6 {[%clk 0:00:17]}  Rh3+ {[%clk 0:01:05]} 32. Kg2 {[%clk 0:00:17]}  Rxh4 {[%clk 0:01:03]} 33. f5 {[%clk 0:00:18]}  Be5 {[%clk 0:01:00]} 34. fxg6 {[%clk 0:00:17]}  hxg6 {[%clk 0:01:00]} 35. Bd5 {[%clk 0:00:17]}  Kg7 {[%clk 0:01:00]} 36. Rb1 {[%clk 0:00:15]}  a5 {[%clk 0:00:58]} 37. Rb7 {[%clk 0:00:15]}  Rf4 {[%clk 0:00:58]} 38. Ra7 {[%clk 0:00:15]}  Bc3 {[%clk 0:00:58]} 39. Kg3 {[%clk 0:00:16]}  Rf5 {[%clk 0:00:55]} 40. Be6 {[%clk 0:00:11]}  Rf6 {[%clk 0:00:54]} 41. Bd5 {[%clk 0:00:12]}  Bb4 {[%clk 0:00:54]} 42. Kg4 {[%clk 0:00:12]}  Rf2 {[%clk 0:00:54]} 43. Kg3 {[%clk 0:00:12]}  Rf5 {[%clk 0:00:53]} 44. Kg4 {[%clk 0:00:12]}  Rf1 {[%clk 0:00:47]} 45. Bg2 {[%clk 0:00:11]}  Rg1 {[%clk 0:00:46]} 46. Kh3 {[%clk 0:00:12]}  g5 {[%clk 0:00:43]} 47. Bd5 {[%clk 0:00:12]}  Rf1 {[%clk 0:00:42]} 48. Kg4 {[%clk 0:00:13]}  Kg6 {[%clk 0:00:42]} 49. Be4+ {[%clk 0:00:12]}  f5+ {[%clk 0:00:42]} 50. Bxf5+ {[%clk 0:00:12]}  Rxf5 {[%clk 0:00:42]} 0-1


[Site "https://www.chess.com"]